Cogmind - Beta 12 @@@ ROGUE MODE // 2023.12.25 @ 15:36:36 Player: Erik Result: Self-destructed Performance ------------- Evolutions (1) 500 Regions Visited (3) 600 Robots Destroyed (36) 180 Value Destroyed (838) 838 Prototype IDs (0) 0 Alien Tech Used (0) 0 Bonus (0) 0 TOTAL SCORE: 2118 Bonus ------- None Cogmind --------- Core Integrity 385/400 Matter 280/300 Energy 250/250 System Corruption 0% Temperature Cool (0) Movement Walking (120) Location -9/Materials Parts ------- > --- POWER (1) -------- Ion Engine > --- PROPULSION (4) --- Aluminum Leg Aluminum Leg Aluminum Leg Aluminum Leg > --- UTILITY (2) ------ Small Storage Unit Structural Scanner > --- WEAPON (2) ------- Grenade Launcher Hammer > --- INVENTORY (8) ---- Ion Engine Large Battery (200) Large Matter Pod (150) ECM Suite Peak State ------------ > --- POWER ------------ Light Nuclear Core > --- PROPULSION ------- Aluminum Leg Aluminum Leg > --- UTILITY ---------- Small Storage Unit Hacking Suite > --- WEAPON ----------- Medium Laser Particle Gun > --- INVENTORY -------- Ion Engine Light Ion Engine Large Storage Unit Small Battery Large Matter Pod Small Laser Grenade Launcher Datajack [Rating: 12] Favorites ----------- Power Ion Engine Engine Ion Engine Power Core Light Nuclear Core Propulsion Aluminum Leg Leg Aluminum Leg Wheel Wheel Utility Small Storage Unit Device Structural Scanner Storage Small Storage Unit Processor Visual Processing Unit Hackware Hacking Suite Protection Light Armor Plating Weapon Medium Laser Energy Gun Medium Laser Launcher Grenade Launcher Special Weapon Mining Laser Impact Weapon Hammer Special Melee Weapon Datajack Build | -11 -10 -10 -9 ------- Run | Jun Mat Min Mat Slots Evolved 2 | . . . 2 Power . | . . . . Propulsion 2 | . . . 2 Utility . | . . . . Weapon . | . . . . Parts Attached 50 | 7 39 2 2 Power 9 | 2 6 1 . Engine 7 | 2 4 1 . Core 2 | . 2 . . Reactor . | . . . . Propulsion 12 | 2 8 . 2 Treads . | . . . . Leg 10 | . 8 . 2 Wheel 2 | 2 . . . Hover . | . . . . Flight . | . . . . Utility 9 | 1 8 . . Device 2 | 1 1 . . Storage 3 | . 3 . . Processor 1 | . 1 . . Hackware 1 | . 1 . . Protection 2 | . 2 . . Artifact . | . . . . Weapon 20 | 2 17 1 . Energy Gun 7 | 2 5 . . Energy Cannon . | . . . . Ballistic Gun . | . . . . Ballistic Cannon . | . . . . Launcher 5 | . 4 1 . Special Weapon 3 | . 3 . . Impact Weapon 2 | . 2 . . Slashing Weapon . | . . . . Piercing Weapon . | . . . . Special Melee Weapon 3 | . 3 . . Unidentified Prototypes . | . . . . Parts Lost 3 | . 3 . . Power . | . . . . Propulsion . | . . . . Utility 1 | . 1 . . Weapon 2 | . 2 . . Highest Loss Streak 1 | . 1 . . To Critical Strikes . | . . . . Average Slot Usage (%) 95 | . 95 91 100 Engine 8 | . 7 14 11 Core 5 | . 6 . . Leg 27 | . 27 28 44 Device 4 | . 3 14 11 Storage 13 | . 13 14 11 Hackware 2 | . 2 . . Protection 4 | . 4 . . Energy Gun 13 | . 15 . . Launcher 3 | . 3 6 11 Special Weapon 4 | . 5 . . Impact Weapon 2 | . 1 14 11 Special Melee Weapon 2 | . 2 . . Naked Turns . | . . . . Heaviest Build 19 | 9 19 16 16 Greatest Support 40 | 20 20 20 40 Greatest Overweight (x) 1 | . 1 . . Average Overweight (x) . | . . . . Largest Inventory Capacity 8 | 5 8 8 8 Average Capacity 7 | 5 7 8 8 Most Carried 8 | 5 8 8 5 Average Carried 7 | 3 7 6 4 Final Capacity 8 | 5 8 8 8 Final Carried 6 | 5 6 6 4 Class Distribution -------------------- 51% | Scavenger-Mutant 48% | Mutant Dominant Class ---------------- Scavenger-Mutant | -10/Materials Mutant | -10/Mines Scavenger-Mutant | -9/Materials Resources | -11 -10 -10 -9 ----------- Run | Jun Mat Min Mat Matter Collected 962 | 270 592 80 20 Remotely . | . . . . Salvage Created 792 | 36 663 56 37 Parts 59 | 4 46 5 4 Haulers Intercepted 1 | . 1 . . Recyclers Shooed 1 | . . 1 . Parts Field Recycled . | . . . . Retrieved Matter . | . . . . Parts Self-Destructed . | . . . . Prevented . | . . . . Kills | -11 -10 -10 -9 ------- Run | Jun Mat Min Mat Combat Hostiles Destroyed 25 | 1 19 4 1 Melee 3 | . 2 1 . Guns 12 | 1 11 . . AOE 8 | . 5 2 1 Classes Destroyed 8 | 1 6 . 1 Worker 2 | . 2 . . Builder 3 | . 2 1 . Hauler 1 | . 1 . . Operator 2 | . 2 . . Watcher 3 | . 3 . . Swarmer 7 | . 3 4 . Grunt 17 | 1 16 . . Sentry 1 | . . . 1 Best Kill Streak 5 | 1 5 5 1 Combat Bots Only 4 | 1 3 4 1 Max Kills in Single Turn 3 | 1 3 1 1 Gunslinging . | . . . . Exploded 1 | . 1 1 1 Melee 1 | . 1 1 . Uniques/NPCs Destroyed . | . . . . Combat | -11 -10 -10 -9 -------- Run | Jun Mat Min Mat Damage Taken 1064 | 21 854 156 33 Core 213 | . 170 28 15 Absorbed by Shields . | . . . . Regen/Repaired (Parts) 123 | . 123 . . Core Remaining (%) 60 | 100 . 20 . Volleys Fired 69 | 2 62 3 2 Largest 2 | 2 2 1 1 Hottest 200 | 80 200 30 30 Shots Fired 128 | 4 119 3 2 Gun 85 | 4 81 . . Cannon . | . . . . Launcher 15 | . 10 3 2 Special 28 | . 28 . . Kinetic . | . . . . Thermal 104 | 2 102 . . Explosive 15 | . 10 3 2 Electromagnetic 9 | 2 7 . . Robot Hit Streak 11 | 3 11 . 2 Robot Miss Streak 8 | . 8 2 . Penetration Max . | . . . . Secondary Targets . | . . . . Shots Hit Robots 84 | 3 76 3 2 Core Hits 48 | 2 40 3 3 Critical Kills . | . . . . Critical Parts Destroyed . | . . . . Critical Strikes 3 | . 3 . . Burn 3 | . 3 . . Melee Attacks 17 | . 12 5 . Impact 16 | . 11 5 . Slashing . | . . . . Piercing . | . . . . Sneak Attacks 1 | . 1 . . Combat Hostiles . | . . . . Follow-up Attacks . | . . . . Damage Inflicted 2083 | 37 1825 182 39 Guns 718 | 37 681 . . Cannons . | . . . . Explosions 898 | . 736 123 39 Melee 226 | . 167 59 . Ramming 1 | . 1 . . Kinetic . | . . . . Thermal 1075 | 12 1063 . . Explosive 693 | . 531 123 39 Electromagnetic 88 | 25 63 . . Impact 226 | . 167 59 . Slashing . | . . . . Piercing . | . . . . Highest Corruption . | . . . . Average Corruption . | . . . . Corruption Purged . | . . . . Corruption Blocked . | . . . . Overload Shots . | . . . . Overflow Damage 109 | . 79 30 . Projectiles 9 | . 9 . . Explosions 80 | . 67 13 . Melee 20 | . 3 17 . Knockbacks 2 | . 2 . . Impact 2 | . 2 . . Kinetic . | . . . . Secondary . | . . . . Self-Inflicted Damage 150 | . 113 37 . Shots 4 | . 3 1 . Rammed . | . . . . Targets Rammed 1 | . 1 . . Kicked 1 | . 1 . . Crushed . | . . . . Highest Temperature 492 | 48 492 . 1 Average Temperature 91 | 28 93 . 1 Received Heat Transfer 414 | 12 393 . 9 Effects 3 | . 3 . . Shutdowns 1 | . 1 . . Energy Bleed 2 | . 2 . . Siege Activations . | . . . . Robots Corrupted . | . . . . Combat Hostiles . | . . . . Parts Fried 1 | . . 1 . Impact Corruptions 2 | . 1 1 . Robots Melted 1 | . 1 . . Combat Hostiles 1 | . 1 . . Parts Melted 7 | . 7 . . Heat Transferred 2492 | 25 2467 . . Parts Sabotaged . | . . . . Parts Stolen . | . . . . Parts Stripped . | . . . . Power Chain Reactions . | . . . . Missiles Intercepted . | . . . . Alert | -11 -10 -10 -9 ------- Run | Jun Mat Min Mat Peak Influence 202 | 20 202 172 122 Initial 66 | . 13 53 66 Average 108 | 8 112 105 85 Maximum Alert Level 1 | . 1 . . Low Security (%) 92 | 100 91 100 100 Level 1 7 | . 8 . . Level 2 . | . . . . Level 3 . | . . . . Level 4 . | . . . . Level 5 . | . . . . High Security . | . . . . Max Security . | . . . . Squads Dispatched 6 | . 6 . . Investigation 5 | . 5 . . Extermination . | . . . . Reinforcement 1 | . 1 . . Assault . | . . . . Garrison . | . . . . Intercept . | . . . . Searches Triggered . | . . . . Construction Impeded . | . . . . Haulers Reinforced . | . . . . Active Scanning Responses . | . . . . Cargo Convoy Interrupts . | . . . . Stealth | -11 -10 -10 -9 --------- Run | Jun Mat Min Mat Distress Signals . | . . . . Communications Jammed . | . . . . Distress Signals . | . . . . Times Spotted 34 | 1 27 5 1 Peak Tracking Total 4 | 1 3 4 1 Tactical Retreats 1 | . . 1 . Traps | -11 -10 -10 -9 ------- Run | Jun Mat Min Mat Traps Triggered 2 | . 2 . . Indirectly . | . . . . Trap Hack Attempts 36 | . 36 . . Triggered . | . . . . Disarmed 3 | . 3 . . Reprogrammed 1 | . 1 . . Reused . | . . . . Traps Extracted . | . . . . Installed . | . . . . Triggered . | . . . . Machines | -11 -10 -10 -9 ---------- Run | Jun Mat Min Mat Machines Disabled 2 | . 2 . . Max in Single Turn 2 | . 2 . . Machines Repaired . | . . . . Machines Sabotaged . | . . . . Overloaded Fab Kills . | . . . . Hacking | -11 -10 -10 -9 --------- Run | Jun Mat Min Mat Machines Accessed 11 | . 10 . 1 Terminals 8 | . 7 . 1 Fabricators . | . . . . Repair Stations 1 | . 1 . . Recycling Units 2 | . 2 . . Scanalyzers . | . . . . Garrison Access . | . . . . Total Hacks 39 | . 32 . 7 Successful 26 | . 24 . 2 Failed 13 | . 8 . 5 Catastrophic 2 | . 2 . . Database Lockouts . | . . . . Manual . | . . . . Terminals 31 | . 24 . 7 Fabricators . | . . . . Repair Stations 4 | . 4 . . Recycling Units 4 | . 4 . . Scanalyzers . | . . . . Garrison Access . | . . . . Terminal Hacks 20 | . 18 . 2 Record 10 | . 8 . 2 Robot Analysis 2 | . 2 . . Branch Access Points 1 | . 1 . . Emergency Access Points 1 | . 1 . . Locate Traps 2 | . 2 . . Dispatch Records 1 | . 1 . . Maintenance Status 1 | . 1 . . Reinforcement Status 1 | . 1 . . Hauler Manifests 1 | . 1 . . Fabricator Hacks . | . . . . Repair Station Hacks 4 | . 4 . . Scan Component 2 | . 2 . . Repair 2 | . 2 . . Recycling Unit Hacks 2 | . 2 . . Report Inventory 1 | . 1 . . Retrieve Components 1 | . 1 . . Scanalyzer . | . . . . Garrison Access Hacks . | . . . . Unauthorized Hacks . | . . . . Terminals . | . . . . Fabricators . | . . . . Repair Stations . | . . . . Recycling Units . | . . . . Scanalyzers . | . . . . Garrison Access . | . . . . Data Cores Recovered 1 | . 1 . . Used . | . . . . Hacking Detections 9 | . 8 . 1 Full Trace Events 8 | . 8 . . Feedback Events . | . . . . Feedback Blocked . | . . . . Robot Schematics Acquired . | . . . . Robots Built . | . . . . Authchips . | . . . . Time . | . . . . Total Robot Build Rating . | . . . . Part Schematics Acquired . | . . . . Parts Built . | . . . . Authchips . | . . . . Time . | . . . . Total Part Build Rating . | . . . . Parts Repaired 2 | . 2 . . Time 52 | . 52 . . Parts Recycled . | . . . . Recycled Matter . | . . . . Retrieved Matter . | . . . . Retrieved Components 1 | . 1 . . Parts Scanalyzed . | . . . . Part Schematics Acquired . | . . . . Parts Damaged . | . . . . Bothacking | -11 -10 -10 -9 ------------ Run | Jun Mat Min Mat Used RIF Installer . | . . . . Robots Hacked 1 | . 1 . . Non-combat 1 | . 1 . . Combat . | . . . . Robot Hacks Applied 1 | . 1 . . parse_system 1 | . 1 . . Relay Couplers Released . | . . . . Fabnet Peak Effective % . | . . . . Robots Rewired . | . . . . Allies Hacked . | . . . . Hacks Repelled . | . . . . Allies | -11 -10 -10 -9 -------- Run | Jun Mat Min Mat Total Allies 2 | . . 2 . Largest Group 2 | . . 2 . Highest-Rated Group 42 | . . 42 . Highest-Rated Ally 31 | . . 31 . Total Orders . | . . . . Ally Attacks 9 | . . 9 . Total Damage 104 | . . 104 . Kills 1 | . . 1 . Allies Corrupted . | . . . . Allies Melted . | . . . . Intel | -11 -10 -10 -9 ------- Run | Jun Mat Min Mat Robot Analysis Total 2 | . 2 . . Derelict Logs Recovered . | . . . . Drone Launches . | . . . . Drone Recoveries . | . . . . Exploration | -11 -10 -10 -9 ------------- Run | Jun Mat Min Mat Turns Passed 2948 | 94 2577 216 61 Spaces Moved 2058 | 94 1769 159 36 Core 17 | 17 . . . Treads . | . . . . Legs 1895 | . 1700 159 36 Wheels 146 | 77 69 . . Hover . | . . . . Flight . | . . . . Fastest Speed 50 | 50 80 120 120 Average Speed 116 | 74 118 120 120 Slowest Speed 190 | 80 190 120 120 Overloaded Moves . | . . . . Propulsion Burnouts . | . . . . Robots Hopped . | . . . . Cave-ins Triggered . | . . . . Exploration Rate (%) 36 | 10 97 34 6 Regions Visited 3 Branch Regions 1 Pre-discovered Areas 1 | . . 1 . Known Exits Taken 1 | . 1 . . Unknown Exits Taken 2 | 1 . 1 . Scrap Searched 2 | . . 2 . Spaces Dug . | . . . . Terrain Destroyed 138 | . 117 15 6 Melee . | . . . . Projectile 9 | . 9 . . AOE 129 | . 108 15 6 Terrain Rammed . | . . . . Walls Destroyed . | . . . . Machines Disabled . | . . . . Actions | -11 -10 -10 -9 --------- Run | Jun Mat Min Mat Total 2388 | 113 2052 172 51 Wait 82 | . 70 1 11 Move 2055 | 93 1768 158 36 Hop . | . . . . Pick Up 52 | 11 39 2 . Fast Attach . | . . . . Attach 16 | 6 7 1 2 Detach . | . . . . Swap 34 | 1 32 1 . Drop 26 | . 25 1 . Fire 69 | 2 62 3 2 Melee 17 | . 12 5 . Ram . | . . . . Kick 1 | . 1 . . Crush . | . . . . Escape Stasis . | . . . . Rewire . | . . . . Trap 36 | . 36 . . Miscellaneous . | . . . . Route ------- -11/Junkyard -10/Materials (discovered 4 exits: *Mat x3 / *Min) -10/Mines -9/Materials History --------- Turn | Location | Event 2 | -11/Junkyard | Met Revision 17 49 | -11/Junkyard | Discovered new exit (range 8) 95 | -11/Junkyard | Entered Materials 304 | -10/Materials | Build established: Mutant 308 | -10/Materials | Discovered new exit (range 9) 773 | -10/Materials | Discovered new exit (range 16) 854 | -10/Materials | Build established: Scavenger-Mutant 1081 | -10/Materials | Discovered new exit (range 14) 1339 | -10/Materials | Identified exit to Mines 1343 | -10/Materials | Discovered new exit (range 16) 1390 | -10/Materials | Core integrity fell below 50% 2209 | -10/Materials | Build established: Mutant 2521 | -10/Materials | Repaired Aluminum Leg 2550 | -10/Materials | Repaired Sml. Storage Unit 2672 | -10/Materials | Entered Mines 2681 | -10/Mines | Met a Derelict bent on vengeance 2696 | -10/Mines | Discovered new exit (range 13) 2713 | -10/Mines | Learned location of Storage (-9) 2888 | -10/Mines | Entered Materials 2888 | -9/Materials | Evolved 2 slots: Propulsion x2 2949 | -9/Materials | Self-destructed Last Messages --------------- 02900_ Connecting with Terminal... 02900_ Current location identified: Materials >>Query(Solar System) Comprises the G-class Sun and its planetary system of eight planets, including [Earth], the origin of [Human] civilization. Many of the system's planets and moons were colonized to some degree during the 2070-2110 push for colonization to alleviate [Human] civilization's growing toll on [Earth]'s resources. >>Query(Earth) Third planet from the Sun in the [Solar System]. Terrestrial homeworld of [Human] civilization. By the late 21st century that civilization drained the planet's resources and destabilized the environment to the point that global-scale technology was necessary to maintain an increasingly fragile planet. [Achievement: Librarian] 02914_ T-07 Excavator is excavating. 02918_ Acquired 20 matter. 02936_ T-07 Excavator is excavating. 02937_ Y-45 Defender destroyed. 02940_ T-07 Excavator is excavating. Map ----- +----------------------------------------------------+ | | | | | | | | | | | | | | | | | ????????????????????????????????????????????? | | ????????????????????????????????????????????? | | ????????????????????????????????????????????? | | ????????????????????????????????????????????? | | ????????????????????????????????????????????? | | ????????????????????????????????????????????? | | ????????????????????????????????????????????? | | ????????????????????????????????????????????? | | ??????????????????????????#####???########### | | ??????????????????????????################### | | ?????????????????????????# ####### # | | ?????????????????????????# ### # T # | | ??????????? ?????????# ## # # | | ??????????#####+?## # ## # """ # | | ??????????### ###+###### ### + """"" # | | ?????????? m # """"" # | | ?????????? # """"" # | | ?????????? @ ! # """ # | | ???????????## ######## %= # # # | | ???????????###???######## = # ########## | | ??????????????????????? ## # ########## | | ??????????????????????? ## % ##???????? | | ????????????????????????## " # ##???????? | | ????????????????????????## T # ##???????? | | ????????????????????????## " # ##???????? | | ????????????????????????## # # ???????? | | ????????????????????????######## # ???????? | | ????????????????????????######## # ???????? | | ??????????????????????????????## + ???????? | | ??????????????????????????????## # ???????? | | ???????????????????????????????? # ???????? | | ?????????????????????????????????? ##???????? | | ????????????????????????????????????????????? | | ????????????????????????????????????????????? | | ????????????????????????????????????????????? | | ????????????????????????????????????????????? | | ????????????????????????????????????????????? | | ????????????????????????????????????????????? | | ????????????????????????????????????????????? | | ????????????????????????????????????????????? | | ????????????????????????????????????????????? | | ????????????????????????????????????????????? | +----------------------------------------------------+ Best States ------------- Heat Dissipation 35 Energy Generation 14 Energy Capacity 250 Matter Stores 308 Matter Capacity 450 Sight Range 18 Terrain Scan Density 10 Armor Coverage 150 Propulsion Shielding 33 Evasion (%) 55 Offensive Hacking 10 Item Schematics ----------------- None Robot Schematics ------------------ None Fabricated ------------ Nothing Alien Tech Used ----------------- None Achievements -------------- Crack Shot Hehehe It's Just You Librarian Loot Pinata Novice Programmer One Hack Too Far Part-time Mechanic Shopping List Storm Trooper Uninvited Guest Challenges ------------ None Game ------ Seed MomentumSapperSuite Manual? 0 Play Time 01:36:38 Cumulative 3.1 hours Start 2023.12.25 @ 13:03:34 End 2023.12.25 @ 15:36:36 Sessions 1 Manual Loads 0 Difficulty Rogue Special Mode None Game No. 1 Rogue 1 Adventurer 0 Explorer 0 Win Type - Total 0 Types 0/0/0/0/0/0/0/0/0 Lore% 1 Gallery% 2 Achievement% 4 Wizard Run 0 Options --------- ASCII 1 Keyboard 0 Movement Mouse Keybinds 0 Fullscreen 1 Font 36/TerminusFine Map View 76x50 Tactical HUD 1 Map Filters NONE Filters NONE Steam 1 RUN: 2f18e0ca-9281-4eeb-8573-3225ddb73768